bitfinex-derivatives/quotes_BTCF0:USTF0_20250114
["timestamp","ask_amount","ask_price","bid_price","bid_amount"]
[1736867054430,0.3608,96495.0,96489.0,0.00255443]
[1736867054622,0.0939,96494.0,96489.0,0.00255443]
[1736867055030,0.0939,96494.0,96468.0,0.3608]
[1736867055234,0.3608,96484.0,96468.0,0.3608]
[1736867055530,0.3608,96476.0,96468.0,0.3608]
[1736867055930,0.3608,96476.0,96468.0,0.37126471]
[1736867057135,0.3648,96476.0,96468.0,0.37126471]
[1736867057527,0.004,96476.0,96468.0,0.37126471]
[1736867059833,0.004,96476.0,96468.0,0.73206471]
[1736867060133,0.3608,96505.0,96479.0,0.051842]
[1736867060330,0.3608,96505.0,96495.0,0.17029686]
[1736867060531,0.0964,96513.0,96498.0,0.3608]
[1736867060735,0.0964,96513.0,96503.0,0.17029686]
[1736867061625,0.0964,96513.0,96503.0,0.18089265]
[1736867061826,0.3608,96514.0,96503.0,0.18089265]
[1736867062739,0.002,96513.0,96503.0,0.18089265]
[1736867063032,0.008,96513.0,96504.0,0.049]
[1736867063531,0.3628,96514.0,96504.0,0.049]
[1736867063742,0.3658,96514.0,96504.0,0.049]
[1736867064124,0.3658,96514.0,96503.0,0.18189265]
[1736867064324,0.003,96513.0,96503.0,0.18089265]
[1736867064934,0.003,96513.0,96490.0,1.54932]
[1736867064935,0.3608,96504.0,96500.0,0.17029686]
[1736867065129,0.3608,96506.0,96490.0,0.17029686]
[1736867066633,0.3628,96506.0,96490.0,0.17029686]
[1736867066840,0.3628,96506.0,96490.0,0.17129686]
[1736867067227,0.3608,96496.0,96490.0,0.001]
[1736867068935,0.3608,96496.0,96490.0,0.002]
[1736867069133,0.0942,96495.0,96490.0,0.002]
[1736867069634,0.0454,96495.0,96490.0,0.002]
[1736867069838,0.0454,96495.0,96490.0,0.001]
[1736867070041,0.3678,96496.0,96490.0,0.001]
[1736867070640,0.3608,96496.0,96478.0,0.3608]
[1736867070835,0.007,96495.0,96490.0,0.001]
[1736867071641,0.008,96495.0,96490.0,0.001]
[1736867072829,0.001,96495.0,96487.0,0.3608]
[1736867073031,0.001,96495.0,96490.0,0.001]
[1736867073238,0.001,96495.0,96491.0,0.3608]
[1736867073439,0.001,96495.0,96491.0,0.4052]
[1736867073745,0.008,96495.0,96491.0,0.4052]
[1736867074340,0.3608,96492.0,96490.0,0.001]
[1736867074841,0.008,96495.0,96490.0,0.001]
[1736867075141,0.007,96495.0,96493.0,0.3608]
[1736867075341,0.008,96495.0,96493.0,0.3608]
[1736867075933,0.007,96495.0,96493.0,0.3608]
[1736867076135,0.3608,96514.0,96494.0,0.0942]
[1736867076337,0.3608,96514.0,96504.0,0.17029686]
[1736867076740,0.00155484,96519.0,96504.0,0.17029686]
[1736867076947,0.00155484,96519.0,96510.0,0.3608]
[1736867077642,0.007,96514.0,96510.0,0.3608]
[1736867078748,0.007,96514.0,96510.0,0.37090199]
[1736867078931,0.00455484,96519.0,96511.0,0.001]
[1736867079138,0.24563805,96540.0,96518.0,0.3608]
[1736867079439,0.24563805,96540.0,96527.0,0.3608]
[1736867079638,0.24563805,96540.0,96530.0,0.17029686]
[1736867080341,0.24563805,96540.0,96536.0,0.3608]
[1736867080648,0.001,96540.0,96536.0,0.3608]
[1736867082348,0.01155424,96554.0,96536.0,0.3608]
[1736867083647,0.3608,96541.0,96530.0,0.01041737]
[1736867083844,0.3608,96541.0,96527.0,0.3608]
[1736867084048,0.3608,96541.0,96530.0,0.17029686]
[1736867085545,0.3608,96541.0,96527.0,0.3710114]
[1736867085943,0.3608,96541.0,96530.0,0.17029686]
[1736867086452,0.01155424,96554.0,96534.0,0.3608]
[1736867086744,0.01155424,96554.0,96546.0,0.3608]
[1736867087341,0.01155424,96554.0,96539.0,0.17029686]
[1736867087342,0.3608,96553.0,96539.0,0.17029686]
[1736867087943,0.3608,96553.0,96534.0,0.3608]
[1736867088155,0.3608,96544.0,96534.0,0.3608]
[1736867088659,0.3608,96544.0,96534.0,0.37130445]
[1736867088949,0.01155424,96554.0,96543.0,0.3608]
[1736867089147,0.01155424,96554.0,96544.0,0.17029686]
[1736867089352,0.01155424,96554.0,96546.0,0.001]
[1736867089853,0.01155424,96554.0,96553.0,0.3608]
[1736867090154,0.3608,96566.0,96553.0,0.3608]
[1736867090353,0.3608,96566.0,96556.0,0.17029686]
[1736867091949,0.3608,96566.0,96556.0,0.18079104]
[1736867092751,0.3608,96566.0,96556.0,0.18179104]
[1736867093150,0.3608,96580.0,96561.0,0.3608]
[1736867093350,0.3608,96580.0,96570.0,0.17029686]
[1736867093751,0.3608,96580.0,96571.0,0.13882939]
[1736867094373,0.3608,96580.0,96571.0,0.04512939]
[1736867094551,0.3608,96580.0,96561.0,0.3608]
[1736867094953,0.3608,96580.0,96570.0,0.17029686]
[1736867095153,0.3608,96580.0,96570.0,0.53109686]
[1736867097154,0.3608,96580.0,96570.0,0.53209686]
[1736867097455,0.3608,96571.0,96570.0,0.001]
[1736867098557,0.051794,96570.0,96541.0,0.00155342]
[1736867098757,0.3608,96547.0,96541.0,0.01166889]
[1736867099458,0.3608,96542.0,96541.0,0.01166889]
[1736867099648,0.05181,96539.0,96506.0,0.18422111]
[1736867099853,0.3608,96507.0,96506.0,0.18422111]
[1736867100256,0.051828,96506.0,96476.0,0.0105493]
[1736867100460,0.7216,96483.0,96476.0,0.0105493]
[1736867100647,0.7216,96483.0,96454.0,0.00155489]
[1736867100854,0.3608,96469.0,96463.0,0.01031968]
[1736867101457,0.3608,96469.0,96451.0,0.3608]
[1736867101664,0.3608,96461.0,96451.0,0.3608]
[1736867102950,0.3608,96452.0,96429.0,0.3608]
[1736867103459,0.3608,96452.0,96451.0,0.009]
[1736867104065,0.3608,96452.0,96451.0,0.004]
[1736867104256,0.3608,96452.0,96430.0,0.17029686]
[1736867104257,0.3608,96452.0,96437.0,0.3608]
[1736867104763,0.3608,96452.0,96451.0,0.002]
[1736867105160,0.001,96451.0,96429.0,0.3688]
[1736867105358,0.3608,96442.0,96429.0,0.3688]
[1736867105558,0.3608,96442.0,96430.0,0.17029686]
[1736867106259,0.3608,96442.0,96437.0,0.008]
[1736867106859,0.3608,96452.0,96437.0,0.3608]
[1736867107157,0.3608,96452.0,96440.0,0.17029686]
[1736867107663,0.3608,96452.0,96440.0,0.34059372]
[1736867108067,0.55840001,96481.0,96451.0,0.3608]
[1736867108068,0.3608,96471.0,96451.0,0.3608]
[1736867108262,0.3608,96471.0,96440.0,0.34059372]
[1736867108263,0.00108001,96481.0,96468.0,0.3608]
[1736867108461,0.3608,96485.0,96468.0,0.3608]
[1736867108462,0.3608,96485.0,96471.0,0.34059372]
[1736867108667,0.3608,96485.0,96471.0,0.17029686]
[1736867109363,0.3608,96485.0,96481.0,1.5]
[1736867109565,0.3608,96485.0,96471.0,0.17029686]
[1736867109754,0.3608,96472.0,96450.0,0.53109686]
[1736867109959,0.3608,96464.0,96460.0,0.17029686]
[1736867110159,0.3608,96464.0,96451.0,0.00052]
[1736867110355,0.3608,96464.0,96450.0,0.17029686]
[1736867111065,0.3608,96454.0,96450.0,0.17029686]
[1736867111263,0.3608,96464.0,96445.0,0.0103005]
[1736867111463,0.3608,96464.0,96454.0,0.17029686]
[1736867111965,0.3608,96475.0,96454.0,0.17029686]
[1736867112262,0.3668,96485.0,96468.0,0.3608]
[1736867112464,0.3668,96485.0,96475.0,0.17029686]
[1736867112865,0.3608,96485.0,96475.0,0.17029686]
[1736867113266,0.3608,96497.0,96481.0,0.3608]
[1736867113466,0.3608,96497.0,96490.0,0.3608]
[1736867113672,0.3608,96497.0,96487.0,0.17029686]
[1736867114173,0.3608,96506.0,96489.0,0.3608]
[1736867114482,0.00155485,96520.0,96505.0,0.3608]
[1736867114665,0.3608,96513.0,96500.0,0.17029686]
[1736867114862,0.00155485,96520.0,96500.0,0.17029686]
[1736867115067,0.00155485,96520.0,96510.0,0.17029686]
[1736867116679,0.00355485,96520.0,96516.0,0.3608]
[1736867117170,0.00755485,96520.0,96516.0,0.3608]
[1736867117774,0.00755485,96520.0,96516.0,0.3618]
[1736867118076,0.00755485,96520.0,96516.0,0.001]
[1736867119068,0.3608,96518.0,96516.0,0.001]
[1736867119268,0.3608,96518.0,96497.0,0.3608]
[1736867119465,0.3608,96499.0,96490.0,0.17029686]
[1736867119675,0.3608,96491.0,96480.0,0.1718515]
[1736867119872,0.3608,96499.0,96481.0,0.17029686]
[1736867120177,0.3608,96499.0,96489.0,0.17029686]
[1736867121180,0.3608,96499.0,96497.0,0.001]
[1736867122969,0.3608,96510.0,96497.0,0.001]
[1736867123268,0.3608,96510.0,96500.0,0.17029686]
[1736867123779,0.3608,96510.0,96490.0,0.17029686]
[1736867123980,0.006,96499.0,96497.0,0.001]
[1736867124479,0.3608,96510.0,96490.0,0.17029686]
[1736867124779,0.3668,96510.0,96500.0,0.001]
[1736867124975,0.3608,96501.0,96500.0,0.001]
[1736867125175,0.006,96499.0,96497.0,0.001]
[1736867126381,0.051834,96496.0,96467.0,0.3608]
[1736867126572,0.051834,96496.0,96455.0,0.36132]
[1736867126573,0.3608,96472.0,96455.0,0.36132]
[1736867126881,0.3608,96472.0,96460.0,0.17029686]
[1736867127675,0.3608,96491.0,96467.0,0.003]
[1736867127878,0.3608,96483.0,96467.0,0.003]
[1736867128074,0.3608,96468.0,96467.0,0.003]
[1736867129784,0.3608,96468.0,96460.0,0.002]
[1736867130482,0.3678,96468.0,96467.0,0.001]
[1736867130875,0.3678,96468.0,96467.0,0.002]
[1736867131076,0.3648,96468.0,96467.0,0.001]
[1736867131670,0.3678,96468.0,96467.0,0.002]
[1736867134286,0.3678,96468.0,96438.0,0.3608]
[1736867134287,0.3678,96468.0,96440.0,0.17029686]
[1736867134580,0.3678,96468.0,96443.0,1.5]
[1736867134780,0.3678,96468.0,96450.0,0.17029686]
[1736867134983,0.7216,96451.0,96431.0,0.0006]
[1736867135178,0.3608,96437.0,96418.0,0.3608]
[1736867135874,0.3618,96437.0,96418.0,0.3608]
[1736867136075,0.3608,96425.0,96418.0,0.3608]
[1736867137188,0.3608,96425.0,96418.0,0.3618]
[1736867137585,0.3688,96425.0,96418.0,0.3618]
[1736867137886,0.3688,96425.0,96418.0,0.001]
[1736867138081,0.001,96424.0,96401.0,0.0463]
[1736867138282,0.3608,96406.0,96401.0,0.0463]
[1736867138489,0.3608,96406.0,96400.0,0.1]
[1736867139885,0.3658,96406.0,96400.0,0.1]
[1736867140091,0.3658,96406.0,96400.0,0.101]
[1736867144887,0.051887,96396.0,96372.0,0.3608]
[1736867145094,0.051887,96396.0,96362.0,0.0883]
[1736867145095,0.3608,96377.0,96362.0,0.0883]
[1736867145792,0.3608,96369.0,96362.0,0.0883]
[1736867146793,0.3608,96369.0,96362.0,0.0963]
[1736867146992,0.3608,96369.0,96362.0,0.1023]
[1736867147392,0.3618,96369.0,96362.0,0.1023]
[1736867150092,0.001,96369.0,96368.0,0.3608]
[1736867150298,0.3608,96406.0,96368.0,0.6608]
[1736867150491,0.3608,96406.0,96396.0,0.17029686]
[1736867150797,0.3608,96429.0,96399.0,0.3608]
[1736867151094,0.3608,96429.0,96414.0,0.17029686]
[1736867151396,0.3608,96429.0,96417.0,0.3608]
[1736867152601,0.3608,96429.0,96414.0,0.18087713]
[1736867152791,0.3608,96429.0,96410.0,0.17029686]
[1736867152792,0.0025564,96426.0,96410.0,0.17029686]
[1736867153193,0.009,96424.0,96414.0,0.001]
[1736867153703,0.3608,96419.0,96414.0,0.001]
[1736867154001,0.3608,96417.0,96414.0,0.001]
[1736867154296,0.3608,96417.0,96393.0,0.01039263]
[1736867154498,0.3608,96405.0,96400.0,0.17029686]
[1736867154799,0.3608,96417.0,96402.0,0.3608]
[1736867154996,0.3608,96417.0,96411.0,0.051879]
[1736867155202,0.3608,96417.0,96411.0,0.05131825]
[1736867155392,0.006,96424.0,96411.0,0.05131825]
[1736867155598,0.006,96424.0,96414.0,0.17029686]
[1736867155993,0.3623564,96426.0,96414.0,0.17029686]
[1736867156295,0.009,96419.0,96414.0,0.17129686]
[1736867156491,0.3608,96460.0,96419.0,0.051875]
[1736867156802,0.36192001,96460.0,96450.0,0.17029686]
[1736867156988,0.3608,96460.0,96450.0,0.17029686]
[1736867157192,0.3608,96460.0,96451.0,0.0862]
[1736867157801,0.00155553,96476.0,96451.0,0.0862]
[1736867157994,0.00155553,96476.0,96460.0,0.17029686]
[1736867159804,0.3618,96474.0,96460.0,0.17029686]
[1736867160002,0.3628,96474.0,96460.0,0.17129686]
[1736867160401,0.002,96474.0,96468.0,0.412648]
[1736867160597,0.3608,96494.0,96476.0,0.051844]
[1736867160902,0.3608,96494.0,96484.0,0.17029686]
[1736867161699,0.3608,96494.0,96468.0,0.3608]
[1736867161700,0.3608,96494.0,96473.0,0.3608]
[1736867161900,0.3608,96494.0,96483.0,0.05184]
[1736867162100,0.3608,96494.0,96484.0,0.0867]
[1736867162506,0.3698,96494.0,96476.0,0.001]
[1736867162802,0.3608,96477.0,96476.0,0.001]
[1736867163198,0.3608,96477.0,96467.0,0.17029686]
[1736867163199,0.3608,96477.0,96473.0,0.001]
[1736867163509,0.3608,96477.0,96461.0,0.34284856]
[1736867163799,0.3608,96477.0,96476.0,0.001]
[1736867164001,0.3618,96477.0,96476.0,0.001]
[1736867165000,0.3618,96477.0,96440.0,0.53109686]
[1736867165205,0.3608,96463.0,96440.0,0.53109686]
[1736867165398,0.3608,96463.0,96448.0,0.01036264]
[1736867165709,0.3608,96463.0,96461.0,0.002]
[1736867166307,0.3608,96463.0,96448.0,0.01036264]
[1736867166507,0.3608,96477.0,96456.0,0.00355493]
[1736867166815,0.3608,96477.0,96467.0,0.53109686]
[1736867167007,0.3608,96477.0,96461.0,0.001]
[1736867167205,0.002,96463.0,96461.0,0.001]
[1736867167404,0.002,96463.0,96456.0,0.00255493]
[1736867167604,0.3608,96458.0,96456.0,0.00255493]
[1736867167909,0.3607316,96458.0,96456.0,0.00255493]
[1736867168109,0.051854,96457.0,96456.0,0.001]
[1736867168408,0.051859,96449.0,96422.0,0.0878]
[1736867168614,0.3608,96428.0,96422.0,0.0878]
[1736867168806,0.3608,96428.0,96414.0,0.3608]
[1736867169703,0.3608,96428.0,96427.0,0.00555552]
[1736867170101,0.3608,96445.0,96427.0,0.00555552]
[1736867170300,0.3608,96445.0,96430.0,0.53109686]
[1736867170602,0.3608,96451.0,96430.0,0.53109686]
[1736867170603,0.3608,96463.0,96444.0,0.3608]
[1736867170804,0.3608,96453.0,96438.0,0.3608]
[1736867171007,0.3608,96453.0,96440.0,0.17029686]
[1736867171308,0.3608,96463.0,96449.0,0.3608]
[1736867171508,0.3608,96464.0,96450.0,0.17029686]
[1736867171814,0.3608,96464.0,96438.0,0.3608]
[1736867171815,0.17029686,96460.0,96438.0,0.3608]
[1736867172003,0.3608,96464.0,96438.0,0.3608]
[1736867172403,0.3608,96452.0,96438.0,0.3608]
[1736867173108,0.3608,96472.0,96448.0,0.3608]
[1736867173309,0.3608,96472.0,96460.0,0.17029686]
[1736867173505,0.3608,96472.0,96448.0,0.3608]
[1736867173506,0.3608,96472.0,96456.0,0.3608]
[1736867173712,0.3608,96496.0,96471.0,0.3608]
[1736867173902,0.1,96500.0,96490.0,0.3608]
[1736867174105,0.24838667,96516.0,96499.0,0.3608]
[1736867174310,0.24726666,96516.0,96515.0,0.3608]
[1736867175008,0.01,96608.0,96515.0,0.3608]
[1736867175009,0.3608,96550.0,96515.0,0.7216]
[1736867175214,0.3608,96550.0,96534.0,0.3608]
[1736867175615,0.3608,96550.0,96534.0,0.62345275]
[1736867176518,0.3608,96558.0,96543.0,0.3608]
[1736867176814,0.01,96550.0,96543.0,0.3608]
[1736867177212,0.3608,96568.0,96543.0,0.3608]
[1736867177213,0.3608,96568.0,96546.0,0.3608]
[1736867177407,0.3608,96568.0,96558.0,0.62345275]
[1736867177810,0.3608,96572.0,96558.0,0.62345275]
[1736867178117,0.3608,96572.0,96547.0,0.0434]
[1736867178118,0.3608,96563.0,96547.0,0.0434]
[1736867178316,0.3608,96572.0,96550.0,0.26265275]
[1736867178519,0.3608,96572.0,96560.0,0.26265275]
[1736867178915,0.003,96558.0,96554.0,0.3608]
[1736867179311,0.3608,96555.0,96543.0,0.001]
[1736867179509,0.3608,96555.0,96550.0,0.001]
[1736867179711,0.003,96572.0,96550.0,0.001]
[1736867179908,0.3608,96566.0,96550.0,0.26365275]
[1736867180219,0.3608,96566.0,96554.0,0.001]
[1736867180220,0.003,96558.0,96554.0,0.001]
[1736867180421,0.3608,96555.0,96554.0,0.001]
[1736867180607,0.3608,96555.0,96540.0,0.26265275]
[1736867180815,0.3608,96575.0,96546.0,0.3608]
[1736867181013,0.3608,96575.0,96560.0,0.26265275]
[1736867181209,0.3608,96575.0,96554.0,0.3608]
[1736867181421,0.3608,96575.0,96560.0,0.26265275]
[1736867182917,0.3638,96575.0,96560.0,0.26365275]
[1736867183117,0.003,96575.0,96568.0,0.3608]
[1736867183516,0.00155428,96590.0,96574.0,0.3608]
[1736867183728,0.00155428,96590.0,96585.0,0.3608]
[1736867184216,0.3608,96606.0,96586.0,0.001]
[1736867184525,0.3608,96606.0,96585.0,0.3608]
[1736867185625,0.3608,96606.0,96590.0,0.26265275]
[1736867186522,0.3608,96606.0,96595.0,0.3608]
[1736867187624,0.3608,96611.0,96595.0,0.3608]
[1736867187829,0.3608,96611.0,96601.0,0.26265275]
[1736867188325,0.3608,96611.0,96595.0,0.37225882]
[1736867188726,0.3608,96611.0,96595.0,0.3618]
[1736867189418,0.3608,96600.0,96595.0,0.001]
[1736867189626,0.3608,96600.0,96580.0,0.26265275]
[1736867190020,0.3608,96600.0,96581.0,0.01018993]
[1736867190732,0.3608,96589.0,96575.0,0.0421]
[1736867190926,0.3608,96589.0,96579.0,0.26265275]
[1736867191631,0.3608,96589.0,96585.0,0.001]
[1736867192017,0.3608,96600.0,96585.0,0.001]
[1736867192229,0.3608,96600.0,96590.0,0.26265275]
[1736867193119,0.3608,96600.0,96585.0,0.001]
[1736867193915,0.3608,96600.0,96590.0,0.26265275]
[1736867194526,0.3608,96600.0,96582.0,0.3608]
[1736867194922,0.3608,96600.0,96590.0,0.26265275]
[1736867195120,0.3608,96600.0,96593.0,0.3608]
[1736867195321,0.3608,96619.0,96593.0,0.3608]
[1736867195322,0.3608,96609.0,96593.0,0.3608]
[1736867196130,0.3608,96609.0,96582.0,0.3618]
[1736867196329,0.3608,96609.0,96590.0,0.26265275]
[1736867196628,0.3608,96609.0,96582.0,0.37189346]
[1736867196629,0.3608,96597.0,96582.0,0.37189346]
[1736867196930,0.3608,96597.0,96582.0,0.3618]
[1736867197136,0.3608,96597.0,96582.0,0.37236612]
[1736867197431,0.3608,96597.0,96587.0,0.16989087]
[1736867198124,0.3608,96609.0,96595.0,0.3608]
[1736867198324,0.3608,96609.0,96599.0,0.16989087]
[1736867198527,0.3608,96621.0,96599.0,0.16989087]
[1736867198826,0.3608,96621.0,96606.0,0.16989087]
[1736867200027,0.3608,96621.0,96606.0,0.17089087]
[1736867202223,0.3608,96628.0,96612.0,0.3608]
[1736867202429,0.00155312,96636.0,96623.0,0.3608]
[1736867202634,0.00155312,96636.0,96626.0,0.16989087]
[1736867204129,0.00155312,96636.0,96626.0,0.17089087]
[1736867204442,0.00155312,96636.0,96626.0,0.18101278]
[1736867204933,0.3608,96661.0,96635.0,0.3608]
[1736867205137,0.37112048,96661.0,96644.0,0.3608]
[1736867206340,0.37112048,96661.0,96644.0,0.3618]
[1736867206836,0.37112048,96661.0,96650.0,0.16989087]
[1736867208036,0.37112048,96661.0,96644.0,0.3618]
[1736867208037,0.3608,96661.0,96644.0,0.001]
[1736867208234,0.3608,96650.0,96644.0,0.001]
[1736867209032,0.3608,96650.0,96640.0,0.16989087]
[1736867209739,0.3608,96650.0,96636.0,0.01025405]
[1736867209932,0.3608,96650.0,96630.0,0.16989087]
[1736867210133,0.3608,96650.0,96640.0,0.16989087]
[1736867210440,0.3608,96650.0,96630.0,0.16989087]
[1736867210636,0.001,96649.0,96620.0,0.16989087]
[1736867210836,0.3608,96633.0,96621.0,0.01039152]
[1736867211138,0.3608,96633.0,96623.0,0.16989087]
[1736867211337,0.3608,96642.0,96629.0,0.3608]
[1736867211543,0.3608,96642.0,96632.0,0.16989087]
[1736867212632,0.3608,96655.0,96639.0,0.3608]
[1736867212937,0.3608,96655.0,96640.0,0.16989087]
[1736867213240,0.3608,96655.0,96639.0,0.53069087]
[1736867214226,0.3608,96655.0,96639.0,0.3608]
[1736867214430,0.3608,96655.0,96632.0,0.01046336]
[1736867214642,0.3608,96655.0,96640.0,0.16989087]
[1736867214835,0.3608,96655.0,96630.0,0.16989087]
[1736867215339,0.3608,96644.0,96630.0,0.16989087]
[1736867216531,0.3608,96655.0,96637.0,0.3608]
[1736867217038,0.3608,96655.0,96640.0,0.16989087]
[1736867218242,0.3608,96653.0,96640.0,0.16989087]
[1736867218434,0.3608,96653.0,96637.0,0.3608]
[1736867218641,0.3608,96653.0,96640.0,0.16989087]
[1736867219241,0.3608,96653.0,96640.0,0.17089087]
[1736867219637,0.3608,96653.0,96645.0,0.3608]
[1736867219836,0.3608,96664.0,96645.0,0.3608]
[1736867220039,0.3608,96664.0,96650.0,0.16989087]
[1736867220236,0.3608,96664.0,96645.0,0.3608]
[1736867220436,0.24425613,96679.0,96657.0,0.7216]
[1736867220634,0.24425613,96679.0,96668.0,0.3608]
[1736867221439,0.0104841,96680.0,96676.0,0.3608]
[1736867221635,0.3608,96694.0,96676.0,0.3608]
[1736867224235,0.3608,96694.0,96676.0,0.37089339]
[1736867224947,0.3608,96694.0,96677.0,0.001]
[1736867225147,0.3608,96694.0,96686.0,0.3608]
[1736867227350,0.1,96700.0,96686.0,0.3608]
[1736867227553,0.1,96700.0,96690.0,0.16989087]
[1736867227736,0.1,96700.0,96695.0,0.3608]
[1736867228841,0.3608,96734.0,96699.0,0.3608]
[1736867229042,0.3608,96734.0,96724.0,0.16989087]
[1736867229240,0.3608,96734.0,96720.0,0.16989087]
[1736867230241,0.3608,96734.0,96720.0,0.33978174]
[1736867230441,0.24639728,96742.0,96728.0,0.3608]
[1736867230641,0.24639728,96742.0,96739.0,0.3608]
[1736867230849,0.36188001,96753.0,96739.0,0.3608]
[1736867231151,0.24639728,96761.0,96747.0,0.3608]
[1736867232348,0.3608,96765.0,96747.0,0.3608]
[1736867232746,0.3608,96765.0,96755.0,0.16989087]
[1736867234358,0.3608,96756.0,96755.0,0.16989087]
[1736867234650,0.051695,96754.0,96727.0,0.00155068]
[1736867234847,0.3608,96733.0,96727.0,0.00155068]
[1736867235046,0.051707,96732.0,96727.0,0.00155068]
[1736867235251,0.3608,96728.0,96701.0,0.0431]
[1736867235451,0.3608,96728.0,96713.0,0.3608]
[1736867235653,0.3608,96716.0,96700.0,0.16989087]
[1736867236156,0.3608,96716.0,96706.0,0.3608]
[1736867236856,0.3608,96728.0,96706.0,0.3608]
[1736867237160,0.3608,96728.0,96710.0,0.16989087]
[1736867237354,0.3608,96728.0,96706.0,0.3608]
[1736867237656,0.3608,96728.0,96710.0,0.16989087]
[1736867238057,0.00108001,96737.0,96721.0,0.3608]
[1736867238355,0.3608,96747.0,96721.0,0.3608]
[1736867238555,0.3608,96747.0,96730.0,0.16989087]
[1736867239146,0.3608,96756.0,96737.0,0.3608]
[1736867239354,0.00155101,96762.0,96745.0,0.3608]
[1736867239652,0.3608,96760.0,96745.0,0.3608]
[1736867240043,0.3608,96760.0,96750.0,0.16989087]
[1736867240851,0.3608,96760.0,96745.0,0.3608]
[1736867241658,0.00020414,96755.0,96745.0,0.3608]
[1736867244057,0.3608,96750.0,96736.0,0.3608]
[1736867244248,0.3608,96750.0,96725.0,0.3608]
[1736867244457,0.3608,96750.0,96730.0,0.16989087]
[1736867244861,0.3608,96742.0,96730.0,0.16989087]
[1736867245351,0.3608,96750.0,96735.0,0.3608]
[1736867245557,0.3608,96750.0,96740.0,0.16989087]
[1736867245957,0.3608,96750.0,96735.0,0.3608]
[1736867248055,0.3608,96750.0,96735.0,0.37119814]
[1736867248662,0.001,96749.0,96735.0,0.3608]
[1736867248864,0.3608,96738.0,96720.0,0.16989087]
[1736867249253,0.3608,96738.0,96720.0,0.1804735]
[1736867249459,0.3608,96738.0,96720.0,0.01058263]
[1736867249660,0.3608,96738.0,96715.0,0.04365074]
[1736867249870,0.3608,96738.0,96728.0,0.16989087]
[1736867250271,0.3608,96750.0,96733.0,0.3608]
[1736867250571,0.3608,96750.0,96742.0,0.3608]
[1736867250962,0.3608,96750.0,96743.0,1.5]
[1736867251572,0.3608,96750.0,96744.0,0.042]
[1736867252075,0.00020414,96755.0,96744.0,0.042]
[1736867252768,0.00020414,96755.0,96751.0,0.3608]
[1736867253167,0.00020414,96755.0,96744.0,0.042]
[1736867253168,0.3608,96753.0,96740.0,0.16989087]
[1736867253363,0.3608,96743.0,96731.0,0.3608]
[1736867253767,0.3608,96753.0,96740.0,0.3608]
[1736867253966,0.3608,96753.0,96740.0,0.53069087]
[1736867254865,0.00020414,96755.0,96740.0,0.53069087]
[1736867255663,0.00020414,96755.0,96740.0,0.3608]
[1736867257277,0.3608,96743.0,96731.0,0.37104496]
[1736867257775,0.3608,96743.0,96731.0,0.01024496]
[1736867257976,0.3608,96734.0,96723.0,0.0413]
[1736867258171,0.3608,96734.0,96710.0,0.16989087]
[1736867258581,0.3608,96734.0,96731.0,0.001]
[1736867258974,0.07717621,96733.0,96731.0,0.001]
[1736867259168,0.07717621,96733.0,96717.0,0.37109187]
[1736867259169,0.07717621,96733.0,96720.0,0.16989087]
[1736867259774,0.36188001,96743.0,96720.0,0.16989087]
[1736867259974,0.3608,96743.0,96720.0,0.16989087]
[1736867260282,0.3608,96743.0,96726.0,0.3608]
[1736867260481,0.3608,96741.0,96720.0,0.16989087]
[1736867260870,0.3608,96741.0,96726.0,0.3608]
[1736867261070,0.07709885,96740.0,96726.0,0.3608]
[1736867261277,0.07709885,96740.0,96720.0,0.16989087]
[1736867261477,0.07709885,96740.0,96730.0,0.16989087]
[1736867261868,0.24698972,96740.0,96717.0,0.37109187]
[1736867262080,0.3608,96732.0,96717.0,0.37109187]
[1736867262475,0.07709885,96739.0,96720.0,0.17089087]
[1736867262677,0.07709885,96739.0,96725.0,0.3608]
[1736867262881,0.07709885,96739.0,96729.0,0.16989087]
[1736867263188,0.3608,96733.0,96720.0,0.001]
[1736867263375,0.3608,96733.0,96717.0,0.01129187]
[1736867263576,0.3608,96733.0,96717.0,0.001]
[1736867264179,0.07809885,96738.0,96717.0,0.001]
[1736867264180,0.3608,96721.0,96717.0,0.001]
[1736867264379,0.3608,96721.0,96711.0,0.01052817]
[1736867264576,0.3608,96712.0,96706.0,0.00064]
[1736867265675,0.001,96711.0,96706.0,0.00064]
[1736867265874,0.16755422,96711.0,96706.0,0.00064]
[1736867266482,0.16755422,96711.0,96706.0,0.00364]
[1736867266483,0.16655422,96711.0,96706.0,0.00364]
[1736867267282,0.07709885,96710.0,96706.0,0.00364]
[1736867267473,0.07709885,96710.0,96707.0,0.0378]
[1736867267680,0.07709885,96710.0,96708.0,0.0386]
[1736867268386,0.3608,96722.0,96708.0,0.0386]
[1736867268682,0.3608,96722.0,96713.0,0.3608]
[1736867269490,0.24639728,96738.0,96713.0,0.3608]
[1736867269689,0.3623512,96744.0,96720.0,0.16989087]
[1736867270887,0.01260483,96740.0,96724.0,0.3608]
[1736867271286,0.1824957,96740.0,96724.0,0.3608]
[1736867271682,0.01260483,96740.0,96724.0,0.3608]
[1736867271887,0.07687482,96732.0,96724.0,0.3608]
[1736867272387,0.07687482,96732.0,96724.0,0.37381168]
[1736867272988,0.3623512,96744.0,96724.0,0.37381168]
[1736867273384,0.001,96743.0,96724.0,0.37381168]
[1736867273796,0.16724545,96743.0,96724.0,0.37381168]
[1736867274683,0.16624545,96742.0,96724.0,0.37381168]
[1736867275091,0.16624545,96742.0,96730.0,0.16989087]
[1736867275390,0.16624545,96742.0,96732.0,0.3608]
[1736867275693,0.16624545,96742.0,96740.0,0.3608]
[1736867275982,0.0015512,96744.0,96741.0,0.0401]
[1736867275983,0.0769282,96743.0,96741.0,0.0401]